fUSD/lending_fUSD_20240126
["ID","MTS","AMOUNT","RATE_DAILY","PERIOD"]
[312819732,1706296252732,-5649.805454,0.000379,7]
[312819733,1706296252741,-5649.805454,0.000379,7]
[312819734,1706296252751,-151.0,0.000379,7]
[312819735,1706296252761,-303.9,0.0003793,2]
[312819736,1706296252770,-1253.47677354,0.00037997,2]
[312819737,1706296252779,-5649.805454,0.00037999,7]
[312819738,1706296252788,-5649.805454,0.00037999,7]
[312819739,1706296252798,-151.0,0.00037999,7]
[312819740,1706296252808,-6515.74537856,0.00037999,2]
[312819741,1706296252818,-50000.0,0.00038,8]
[312819742,1706296252827,-230.14886376,0.00038,2]
[312819743,1706296252837,-153.43257584,0.00038,2]
[312819744,1706296252846,-651113.4204009,0.00038,3]
[312819745,1706296252856,-1592103.76056202,0.00038,2]
[312819746,1706296252865,-1173.5583,0.00038,3]
[312819747,1706296252874,-711583.71657026,0.00038,2]
[312819748,1706296252884,-364145.51793221,0.00038,2]
[312819749,1706296252894,-5000.0,0.00038,2]
[312819750,1706296252905,-250.0,0.00038,24]
[312819751,1706296252915,-15960.45975841,0.00038,2]
[312819752,1706296252924,-511.33269,0.00038,7]
[312819753,1706296252934,-109022.05168761,0.00038,4]
[312819754,1706296252943,-68876.58719609,0.00038,2]
[312819755,1706296252954,-151.0,0.00038,7]
[312819756,1706296252964,-151.0,0.00038,7]
[312819757,1706296252973,-191.630546,0.00038,7]
[312819758,1706296252984,-204.07049,0.00038,7]
[312819759,1706296252994,-204.07049,0.00038,7]
[312819760,1706296253004,-204.07049,0.00038,7]
[312819761,1706296253014,-204.07049,0.00038,7]
[312819762,1706296253023,-204.07049,0.00038,7]
[312819763,1706296253033,-204.07049,0.00038,7]
[312819764,1706296253042,-1624.61368495,0.00038,2]
[312819765,1706296253052,-151.0,0.00038,7]
[312819766,1706296253062,-151.0,0.00038,7]
[312819767,1706296253072,-151.0,0.00038,7]
[312819768,1706296253082,-1998.1,0.00038,2]
[312819769,1706296253092,-275.778964,0.00038,7]
[312819770,1706296253101,-151.0,0.00038,7]
[312819771,1706296253111,-151.0,0.00038,7]
[312819772,1706296253120,-151.0,0.00038,7]
[312819773,1706296253130,-155.302982,0.00038,7]
[312819774,1706296253139,-151.0,0.00038,7]
[312819775,1706296253149,-151.0,0.00038,7]
[312819776,1706296253158,-151.0,0.00038,7]
[312819777,1706296253167,-151.0,0.00038,7]
[312819778,1706296253177,-871.360866,0.00038,7]
[312819779,1706296253186,-871.360866,0.00038,7]
[312819780,1706296253195,-151.0,0.00038,7]
[312819781,1706296253204,-159.132441,0.00038,7]
[312819782,1706296253213,-871.360866,0.00038,7]
[312819783,1706296253222,-871.360868,0.00038,7]
[312819784,1706296253231,-505.82332,0.00038,7]
[312819785,1706296253240,-505.82332,0.00038,7]
[312819786,1706296253249,-505.82332,0.00038,7]
[312819787,1706296253258,-505.823318,0.00038,7]
[312819788,1706296253267,-481.541857,0.00038,7]
[312819789,1706296253276,-481.541857,0.00038,7]
[312819790,1706296253285,-481.541857,0.00038,7]
[312819791,1706296253294,-481.54186,0.00038,7]
[312819792,1706296253303,-151.0,0.00038,7]
[312819793,1706296253312,-235.711733,0.00038,7]
[312819794,1706296253321,-159.617426,0.00038,9]
[312819795,1706296253331,-809.763732,0.00038,7]
[312819796,1706296253340,-809.763732,0.00038,7]
[312819797,1706296253349,-809.763732,0.00038,7]
[312819798,1706296253358,-809.763732,0.00038,7]
[312819799,1706296253435,-2603.84966,0.00038,7]
[312819800,1706296253450,-2603.84966,0.00038,7]
[312819801,1706296253459,-809.763732,0.00038,7]
[312819802,1706296253468,-2603.84966,0.00038,7]
[312819803,1706296253477,-809.763732,0.00038,7]
[312819804,1706296253485,-2603.84966,0.00038,7]
[312819805,1706296253494,-809.763732,0.00038,7]
[312819806,1706296253503,-809.763723,0.00038,7]
[312819807,1706296253511,-2603.84966,0.00038,7]
[312819808,1706296253520,-2603.84966,0.00038,7]
[312819809,1706296253529,-2603.84966,0.00038,7]
[312819810,1706296253538,-2603.849662,0.00038,7]
[312819811,1706296253546,-465.977409,0.00038,7]
[312819812,1706296253555,-465.977409,0.00038,7]
[312819813,1706296253564,-465.977409,0.00038,7]
[312819814,1706296253573,-465.977409,0.00038,7]
[312819815,1706296253582,-465.977409,0.00038,7]
[312819816,1706296253593,-465.977409,0.00038,7]
[312819817,1706296253603,-465.977409,0.00038,7]
[312819818,1706296253614,-465.97741,0.00038,7]
[312819819,1706296253626,-151.0,0.00038,7]
[312819820,1706296253636,-151.0,0.00038,7]
[312819821,1706296253645,-224.87461,0.00038,7]
[312819822,1706296253654,-47189.45565193,0.00038,2]
[312819823,1706296253663,-5649.805454,0.00038,7]
[312819824,1706296253673,-5649.805456,0.00038,7]
[312819825,1706296253682,-151.0,0.00038,7]
[312819826,1706296253691,-372.0,0.000382,27]
[312819827,1706296253700,-150.0,0.00038212,2]
[312819828,1706296253709,-158.37450781,0.0003833,10]
[312819829,1706296253718,-1000.0,0.00038333,2]
[312819830,1706296253729,-150.0,0.00038356,2]
[312819831,1706296253738,-296.62,0.00038356,60]
[312819832,1706296253748,-150.0,0.00038356,2]
[312819833,1706296253757,-150.0,0.00038356,2]
[312819834,1706296253766,-163.76,0.00038356,2]
[312819835,1706296253776,-6429.36,0.000384,7]
[312819836,1706296253785,-750.0,0.000384,2]
[312819837,1706296253794,-43514.47413516,0.0003844,4]
[312819838,1706296253804,-151.0127,0.00038498,12]
[312819839,1706296253813,-561.26,0.000385,3]
[312819840,1706296253822,-150.57471312,0.00038536,2]
[312819841,1706296253833,-2745.15371042,0.00038689,2]
[312819842,1706296253843,-151.0,0.00038692,2]
[312819843,1706296253852,-250.49088,0.00038692,2]
[312819844,1706296253862,-372.0,0.000387,28]
[312819845,1706296253872,-150.0,0.00038789,2]
[312819846,1706296253882,-151.0127,0.00038798,10]
[312819847,1706296253892,-188.0,0.000388,2]
[312819848,1706296254110,-1574.94701494,0.0003888,2]
[312819849,1706296254120,-40366.72621301,0.0003888,2]
[312819850,1706296254130,-40366.72621301,0.0003888,2]
[312819851,1706296254139,-40366.72621301,0.0003888,2]
[312819852,1706296254149,-150.1,0.00038889,2]
[312819853,1706296254158,-409.34,0.00038904,2]
[312819854,1706296254167,-429.86,0.00038904,2]
[312819855,1706296254177,-409.34,0.00038904,2]
[312819856,1706296254186,-283.02928551,0.0003898,2]
[312819857,1706296254195,-50000.0,0.00039,9]
[312819858,1706296254210,-701.12691554,0.00039,10]
[312819859,1706296254231,-295.73063054,0.00039,40]
[312819860,1706296254247,-20132.0403729,0.00039,6]
[312819861,1706296254266,-170.22957149,0.00039,4]
[312819862,1706296254283,-1433.75941074,0.00039,2]
[312819863,1706296254301,-400.0,0.00039,2]
[312819864,1706296254317,-790.58200786,0.00039,2]
[312819865,1706296254333,-250.0,0.00039,25]
[312819866,1706296254351,-155.0,0.00039,5]
[312819867,1706296254367,-6429.36,0.00039,7]
[312819868,1706296254384,-980.59209351,0.00039,4]
[312819869,1706296254403,-625.7279441,0.00039,4]
[312819870,1706296254420,-555.56598866,0.00039,120]
[312819871,1706296254432,-900.0,0.00039,3]
[312819872,1706296254447,-150.0,0.00039,10]
[312819873,1706296254463,-1998.1,0.000391,2]
[312819874,1706296254475,-2098.3908379,0.00039111,30]
[312819875,1706296254489,-152.0,0.00039165,7]
[312819876,1706296254503,-372.0,0.000392,28]
[312819877,1706296254517,-246.02223138,0.0003922,30]
[312819878,1706296254531,-1000.0,0.0003926,2]
[312819879,1706296254545,-366.04607581,0.00039274,2]
[312819880,1706296254559,-284.08397793,0.00039274,2]
[312819881,1706296254573,-150.57471312,0.0003928,3]
[312819882,1706296254587,-1378.29,0.000393,7]
[312819883,1706296254600,-500.0,0.000393,7]
[312819884,1706296254617,-1998.1,0.000393,2]
[312819885,1706296254665,-151.45815545,0.0003933,2]
[312819886,1706296254678,-302.0,0.00039342,4]
[312819887,1706296254693,-150.0,0.00039366,2]
[312819888,1706296254706,-150.0,0.00039366,2]
[312819889,1706296254721,-151.0127,0.00039498,12]
[312819890,1706296254735,-39153.6,0.000395,7]
[312819891,1706296254750,-5000.0,0.000395,4]
[312819892,1706296254763,-3242.78848872,0.000395,2]
[312819893,1706296254778,-209.0,0.00039579,2]
[312819894,1706296254793,-369.12834481,0.000396,2]
[312819895,1706296254806,-303.9,0.0003964,2]
[312819896,1706296254820,-40366.72621301,0.0003965,2]
[312819897,1706296254834,-206.0,0.0003968,23]
[312819898,1706296254848,-750.56,0.00039694,2]
[312819899,1706296254862,-372.0,0.000397,29]
[312819900,1706296254875,-1000.0,0.00039707,10]
[312819901,1706296254890,-834.81,0.00039726,2]
[312819902,1706296254904,-299.25,0.00039726,2]
[312819903,1706296254919,-151.0127,0.00039798,12]
[312819904,1706296254933,-83264.87110875,0.00039865,2]
[312819905,1706296254948,-204.07049,0.00039865,7]
[312819906,1706296254962,-204.0705,0.00039865,7]
[312819907,1706296254976,-151.0,0.00039865,7]
[312819908,1706296254992,-350.00012537,0.000399,4]
[312819909,1706296255007,-49969.85551671,0.000399,2]
[312819910,1706296255022,-150.0,0.00039942,2]
[312819911,1706296255038,-284538.49864619,0.0003999,2]
[312819912,1706296255047,-446.86487083,0.00039999,15]
[312819913,1706296255058,-500.0,0.00039999,15]
[312819914,1706296255069,-500.0,0.00039999,15]
[312819915,1706296255078,-500.0,0.00039999,15]
[312819916,1706296255088,-500.0,0.00039999,15]
[312819917,1706296255243,-626.6321697,0.00039999,15]
[312819918,1706296255257,-500.0,0.00039999,15]
[312819919,1706296255267,-500.0,0.00039999,15]
[312819920,1706296255277,-500.0,0.00039999,15]
[312819921,1706296255287,-323.08887311,0.00039999,15]
[312819922,1706296255297,-500.0,0.00039999,15]
[312819923,1706296255306,-500.0,0.00039999,15]
[312819924,1706296255315,-267.75879432,0.00039999,15]
[312819925,1706296255324,-500.0,0.00039999,15]
[312819926,1706296255334,-441.28588576,0.00039999,15]
[312819927,1706296255342,-500.0,0.00039999,15]
[312819928,1706296255352,-500.0,0.00039999,15]
[312819929,1706296255360,-500.0,0.00039999,15]
[312819930,1706296255369,-500.0,0.00039999,15]
[312819931,1706296255378,-500.0,0.00039999,15]
[312819932,1706296255387,-500.0,0.00039999,15]
[312819933,1706296255396,-500.0,0.00039999,15]
[312819934,1706296255405,-500.0,0.00039999,15]
[312819935,1706296255414,-500.0,0.00039999,15]
[312819936,1706296255424,-500.0,0.00039999,15]
[312819937,1706296255433,-500.0,0.00039999,15]
[312819938,1706296255444,-500.0,0.00039999,15]
[312819939,1706296255454,-500.0,0.00039999,15]
[312819940,1706296255464,-500.0,0.00039999,15]
[312819941,1706296255473,-500.0,0.00039999,15]
[312819942,1706296255482,-500.0,0.00039999,15]
[312819943,1706296255491,-500.0,0.00039999,15]
[312819944,1706296255500,-500.0,0.00039999,15]
[312819945,1706296255509,-500.0,0.00039999,15]
[312819946,1706296255518,-500.0,0.00039999,15]
[312819947,1706296255529,-500.0,0.00039999,15]
[312819948,1706296255539,-500.0,0.00039999,15]
[312819949,1706296255548,-500.0,0.00039999,15]
[312819950,1706296255559,-500.0,0.00039999,15]
[312819951,1706296255569,-500.0,0.00039999,15]
[312819952,1706296255578,-500.0,0.00039999,15]
[312819953,1706296255589,-500.0,0.00039999,15]
[312819954,1706296255599,-500.0,0.00039999,15]
[312819955,1706296255609,-500.0,0.00039999,15]
[312819956,1706296255619,-500.0,0.00039999,15]
[312819957,1706296255628,-202.75453387,0.00039999,15]
[312819958,1706296255637,-431.03978713,0.00039999,15]
[312819959,1706296255646,-500.0,0.00039999,15]
[312819960,1706296255654,-399.01705163,0.00039999,15]
[312819961,1706296255664,-50000.0,0.0004,20]
[312819962,1706296255673,-2272.01463956,0.0004,4]
[312819963,1706296255682,-2681.30267079,0.0004,4]
[312819964,1706296255692,-54328.02898102,0.0004,4]
[312819965,1706296255702,-22049.77147498,0.0004,4]
[312819966,1706296255711,-1085.37856486,0.0004,4]
[312819967,1706296255720,-250.80435435,0.0004,4]
[312819968,1706296255729,-303.48799557,0.0004,2]
[312819969,1706296255739,-2210.74490183,0.0004,4]
[312819970,1706296255750,-1000.0,0.0004,9]
[312819971,1706296255759,-1000.0,0.0004,9]
[312819972,1706296255770,-1113.48494509,0.0004,2]
[312819973,1706296255778,-541.45969657,0.0004,2]
[312819974,1706296255788,-11600.0,0.0004,2]
[312819975,1706296255797,-155.40161938,0.0004,2]
[312819976,1706296255807,-8027.8,0.0004,2]
[312819977,1706296255816,-300.0,0.0004,26]
[312819978,1706296255825,-2000.0,0.0004,3]
[312819979,1706296255834,-2000.0,0.0004,3]
[312819980,1706296255844,-240.89230544,0.0004,30]
[312819981,1706296255853,-832.0,0.0004,7]
[312819982,1706296255862,-1250.0,0.0004,21]
[312819983,1706296255871,-2000.0,0.0004,3]
[312819984,1706296255881,-172.12796008,0.0004,4]
[312819985,1706296255890,-2000.0,0.0004,3]
[312819986,1706296255902,-1800.01656871,0.0004,60]
[312819987,1706296255913,-13409.21727615,0.0004,15]
[312819988,1706296255923,-1085.66692465,0.0004,120]
[312819989,1706296255932,-155.0,0.0004,4]
[312819990,1706296255942,-229.68322978,0.0004,2]
[312819991,1706296255951,-109690.36483336,0.0004,2]
[312819992,1706296255960,-9135.8340345,0.0004,2]
[312819993,1706296255970,-8970.79801046,0.0004,2]
[312819994,1706296255981,-1142.63401152,0.0004,2]
[312819995,1706296255990,-9264.05430451,0.0004,2]
[312819996,1706296255999,-5349.38897528,0.0004,2]
[312819997,1706296256009,-1504.51899928,0.0004,2]
[312819998,1706296256018,-200.739296,0.0004,2]
[312819999,1706296256028,-2000.0,0.0004,3]
[312820000,1706296256038,-2000.0,0.0004,3]
[312820001,1706296256048,-225.0179082,0.0004,2]
[312820002,1706296256058,-1421.44817304,0.0004,7]
[312820003,1706296256068,-237.62830731,0.0004,2]
[312820004,1706296256078,-3000.0,0.0004,2]
[312820005,1706296256088,-6365.17737479,0.0004,30]
[312820006,1706296256098,-305.84546388,0.0004,10]
[312820007,1706296256107,-284.78453108,0.0004,10]
[312820008,1706296256117,-18620.78756431,0.0004,30]
[312820009,1706296256127,-5986.42262074,0.0004,10]
[312820010,1706296256136,-5535.63974784,0.0004,10]
[312820011,1706296256145,-9445.72,0.0004,7]
[312820012,1706296256154,-2736.46224737,0.0004,10]
[312820013,1706296256164,-2066.49055091,0.0004,30]
[312820014,1706296256173,-450.0,0.0004,10]
[312820015,1706296256182,-150.0,0.0004,11]
[312820016,1706296256191,-247.5,0.0004,10]
[312820017,1706296256200,-150.0,0.0004,15]
[312820018,1706296256209,-604.0,0.00040003,7]
[312820019,1706296256218,-150.57471312,0.00040025,6]
[312820020,1706296256228,-163.76,0.00040183,2]
[312820021,1706296256238,-372.0,0.000402,29]
[312820022,1706296256247,-425.22782596,0.00040245,30]
[312820023,1706296256256,-2745.15371042,0.00040268,5]
[312820024,1706296256266,-2169.63314547,0.00040269,12]
[312820025,1706296256275,-2169.63314547,0.00040269,12]
[312820026,1706296256284,-2169.63314547,0.00040269,12]
[312820027,1706296256293,-2169.63314547,0.00040269,12]
[312820028,1706296256302,-2169.63314547,0.00040269,12]
[312820029,1706296256311,-2169.63314547,0.00040269,12]
[312820030,1706296256320,-260.21872916,0.000403,4]
[312820031,1706296256329,-563.64700383,0.00040343,120]
[312820032,1706296256338,-1065.03,0.00040349,15]
[312820033,1706296256348,-150.0,0.00040375,2]
[312820034,1706296256357,-1998.1,0.000404,2]
[312820035,1706296256366,-151.0126,0.00040498,14]
[312820036,1706296256375,-150.0,0.000405,7]
[312820037,1706296256384,-168.49929963,0.000405,7]
[312820038,1706296256397,-150.0,0.000405,7]
[312820039,1706296256406,-150.0,0.000405,7]
[312820040,1706296256416,-150.0,0.00040519,2]
[312820041,1706296256425,-817.8,0.00040548,2]
[312820042,1706296256435,-419.27,0.00040548,2]
[312820043,1706296256444,-419.27,0.00040548,2]
[312820044,1706296256454,-838.31,0.00040548,2]
[312820045,1706296256464,-480.66,0.00040548,2]
[312820046,1706296256473,-419.27,0.00040548,2]
[312820047,1706296256483,-419.27,0.00040548,2]
[312820048,1706296256492,-838.54,0.00040548,2]
[312820049,1706296256502,-242.16,0.00040548,2]
[312820050,1706296256511,-1998.1,0.000406,2]
[312820051,1706296256520,-150.0,0.00040661,7]
[312820052,1706296256529,-166.99392,0.00040676,4]
[312820053,1706296256538,-1378.29,0.000407,7]
[312820054,1706296256548,-372.0,0.000407,30]
[312820055,1706296256557,-154.0,0.000407,7]
[312820056,1706296256566,-1304.162916,0.00040729,2]
[312820057,1706296256576,-176.74972,0.00040729,2]
[312820058,1706296256586,-229.63125,0.00040729,2]
[312820059,1706296256595,-1000.0,0.00040733,2]
[312820060,1706296256604,-150.57471312,0.00040769,9]
[312820061,1706296256614,-151.0127,0.00040798,12]
[312820062,1706296256623,-150.0,0.00040821,7]
[312820063,1706296256633,-39153.6,0.000409,7]
[312820064,1706296256642,-366.04607581,0.00040961,3]
[312820065,1706296256651,-284.08397793,0.00040961,3]
[312820066,1706296256661,-150.0,0.00040982,7]
[312820067,1706296256670,-50000.0,0.00041,21]
[312820068,1706296256679,-3441.72254948,0.00041,4]
[312820069,1706296256688,-300.0,0.00041,27]
[312820070,1706296256698,-950.0,0.00041,3]
[312820071,1706296256706,-800.0,0.00041,2]
[312820072,1706296256715,-150.0,0.00041,12]
[312820073,1706296256725,-150.0,0.00041,16]
[312820074,1706296256734,-150.77,0.00041,2]
[312820075,1706296256743,-150.77,0.00041,2]
[312820076,1706296256753,-150.77,0.00041,2]
[312820077,1706296256763,-150.77,0.00041,2]
[312820078,1706296256772,-150.77,0.00041,2]
[312820079,1706296256781,-150.77,0.00041,2]
[312820080,1706296256792,-150.77,0.00041,2]
[312820081,1706296256802,-150.77,0.00041,2]
[312820082,1706296256812,-150.77,0.00041,2]
[312820083,1706296256822,-150.77,0.00041,2]
[312820084,1706296256831,-150.77,0.00041,2]
[312820085,1706296256840,-150.77,0.00041,2]
[312820086,1706296256850,-150.77,0.00041,2]
[312820087,1706296256859,-150.77,0.00041,2]
[312820088,1706296256868,-150.77,0.00041,2]
[312820089,1706296256878,-150.77,0.00041,2]
[312820090,1706296256887,-150.77,0.00041,2]
[312820091,1706296256897,-150.77,0.00041,2]
[312820092,1706296256907,-150.77,0.00041,2]
[312820093,1706296256916,-150.77,0.00041,2]
[312820094,1706296256925,-150.77,0.00041,2]
[312820095,1706296256934,-150.77,0.00041,2]
[312820096,1706296256945,-150.77,0.00041,2]
[312820097,1706296256954,-150.77,0.00041,2]
[312820098,1706296256963,-150.77,0.00041,2]
[312820099,1706296256972,-150.77,0.00041,2]
[312820100,1706296256984,-150.77,0.00041,2]
[312820101,1706296256994,-150.77,0.00041,2]
[312820102,1706296257004,-150.77,0.00041,2]
[312820103,1706296257013,-150.77,0.00041,2]
[312820104,1706296257023,-150.77,0.00041,2]
[312820105,1706296257032,-150.77,0.00041,2]
[312820106,1706296257042,-150.77,0.00041,2]
[312820107,1706296257051,-150.77,0.00041,2]
[312820108,1706296257061,-150.77,0.00041,2]
[312820109,1706296257075,-150.77,0.00041,2]
[312820110,1706296257085,-150.77,0.00041,2]
[312820111,1706296257095,-150.77,0.00041,2]
[312820112,1706296257104,-150.77,0.00041,2]
[312820113,1706296257114,-150.77,0.00041,2]
[312820114,1706296257123,-150.77,0.00041,2]
[312820115,1706296257133,-150.77,0.00041,2]
[312820116,1706296257143,-150.77,0.00041,2]
[312820117,1706296257153,-150.77,0.00041,2]
[312820118,1706296257162,-150.77,0.00041,2]
[312820119,1706296257172,-150.77,0.00041,2]
[312820120,1706296257182,-150.77,0.00041,2]
[312820121,1706296257191,-150.77,0.00041,2]
[312820122,1706296257298,-150.77,0.00041,2]
[312820123,1706296257320,-150.77,0.00041,2]
[312820124,1706296257329,-150.77,0.00041,2]
[312820125,1706296257338,-150.77,0.00041,2]
[312820126,1706296257348,-150.77,0.00041,2]
[312820127,1706296257358,-150.77,0.00041,2]
[312820128,1706296257369,-150.77,0.00041,2]
[312820129,1706296257379,-150.77,0.00041,2]
[312820130,1706296257388,-150.77,0.00041,2]
[312820131,1706296257398,-150.77,0.00041,2]
[312820132,1706296257407,-150.77,0.00041,2]
[312820133,1706296257417,-150.77,0.00041,2]
[312820134,1706296257426,-150.77,0.00041,2]
[312820135,1706296257436,-150.77,0.00041,2]
[312820136,1706296257447,-150.77,0.00041,2]
[312820137,1706296257459,-150.77,0.00041,2]
[312820138,1706296257469,-150.77,0.00041,2]
[312820139,1706296257478,-150.77,0.00041,2]
[312820140,1706296257488,-150.77,0.00041,2]
[312820141,1706296257497,-150.77,0.00041,2]
[312820142,1706296257507,-150.77,0.00041,2]
[312820143,1706296257518,-150.77,0.00041,2]
[312820144,1706296257527,-152.0,0.00041014,8]
[312820145,1706296257538,-1208.0,0.00041016,30]
[312820146,1706296257548,-159.41366122,0.00041095,30]
[312820147,1706296257558,-181.0,0.00041096,2]
[312820148,1706296257567,-1024.78,0.00041096,2]
[312820149,1706296257577,-6834.36,0.00041096,2]
[312820150,1706296257586,-2149.0,0.00041096,14]
[312820151,1706296257595,-150.0,0.00041096,2]
[312820152,1706296257605,-1000.0,0.000411,2]
[312820153,1706296257614,-750.0,0.000411,2]
[312820154,1706296257626,-150.0,0.00041143,30]
[312820155,1706296257638,-1366.375191,0.00041169,7]
[312820156,1706296257647,-372.0,0.000412,30]
[312820157,1706296257656,-1304.162916,0.00041238,30]
[312820158,1706296257666,-176.74972,0.00041238,30]
[312820159,1706296257675,-150.0,0.0004125,30]
[312820160,1706296257684,-362.38072343,0.00041269,60]
[312820161,1706296257693,-169.1347637,0.00041269,2]
[312820162,1706296257702,-221.66529373,0.00041269,28]
[312820163,1706296257716,-308.85122701,0.00041269,120]
[312820164,1706296257725,-360.64237656,0.00041269,120]
[312820165,1706296257734,-1567.93374629,0.00041269,60]
[312820166,1706296257743,-234.50855187,0.00041269,30]
[312820167,1706296257753,-182.90630983,0.00041269,10]
[312820168,1706296257764,-177.7626778,0.00041269,30]
[312820169,1706296257775,-183.45690235,0.00041269,120]
[312820170,1706296257784,-154.36815403,0.00041269,120]
[312820171,1706296257794,-172.64505606,0.00041269,30]
[312820172,1706296257803,-1827.66985976,0.00041269,120]
[312820173,1706296257813,-196.20738408,0.00041269,30]
[312820174,1706296257823,-315.30517181,0.00041269,30]
[312820175,1706296257832,-5506.32,0.00041269,30]
[312820176,1706296257841,-163.0,0.00041269,120]
[312820177,1706296257851,-648.44675565,0.00041269,120]
[312820178,1706296257860,-335.5603862,0.00041269,120]
[312820179,1706296257870,-8842.64628238,0.00041269,7]
[312820180,1706296257879,-252.71202228,0.00041269,120]
[312820181,1706296257888,-196.09198991,0.00041269,120]
[312820182,1706296257898,-183.85524595,0.00041269,120]
[312820183,1706296257910,-50000.0,0.00041269,30]
[312820184,1706296257919,-300.0,0.00041269,50]
[312820185,1706296257928,-2214.31924431,0.00041269,120]
[312820186,1706296257938,-175616.30199956,0.00041269,14]
[312820187,1706296257948,-408.62298911,0.00041269,120]
[312820188,1706296257957,-3023.0022,0.00041269,7]
[312820189,1706296257967,-287.0,0.00041269,120]
[312820190,1706296257976,-3738.84460373,0.00041269,2]
[312820191,1706296257985,-12000.01486156,0.00041269,28]
[312820192,1706296257996,-800.0,0.00041269,120]
[312820193,1706296258005,-100478.22237104,0.00041269,14]
[312820194,1706296258015,-174.0,0.00041269,120]
[312820195,1706296258025,-415.07751934,0.00041269,30]
[312820196,1706296258035,-12322.35993158,0.00041269,4]
[312820197,1706296258046,-159.27993013,0.00041269,120]
[312820198,1706296258055,-476.83022649,0.00041269,30]
[312820199,1706296258065,-5058.83776403,0.00041269,4]
[312820200,1706296258075,-29499.59040295,0.00041269,2]
[312820201,1706296258085,-548.3093697,0.00041269,2]
[312820202,1706296258095,-763.98240684,0.00041269,2]
[312820203,1706296258104,-240.06835743,0.00041269,2]
[312820204,1706296258114,-199.32148388,0.00041269,2]
[312820205,1706296258123,-52118.40403128,0.00041269,2]
[312820206,1706296258132,-8795.8804182,0.00041269,2]
[312820207,1706296258142,-550.0,0.00041269,2]
[312820208,1706296258153,-1000.14762981,0.00041269,2]
[312820209,1706296258162,-10249.92302328,0.00041269,2]
[312820210,1706296258171,-73391.81624558,0.00041269,2]
[312820211,1706296258182,-1215.32431891,0.00041269,4]
[312820212,1706296258192,-3601.34958042,0.00041269,2]
[312820213,1706296258201,-155.57623207,0.00041269,2]
[312820214,1706296258211,-436897.34258132,0.00041269,2]
[312820215,1706296258221,-4418.91716482,0.00041269,4]
[312820216,1706296258230,-40809.26278071,0.00041269,4]
[312820217,1706296258240,-1652.12105,0.00041269,30]
[312820218,1706296258249,-154.93112829,0.00041269,7]
[312820219,1706296258258,-150.0,0.00041304,30]
[312820220,1706296258267,-303.9,0.0004135,2]
[312820221,1706296258276,-877.984816,0.0004137,14]
[312820222,1706296258285,-150.0,0.00041384,2]
[312820223,1706296258296,-150.0,0.00041396,30]
[312820224,1706296258305,-150.0,0.000414,30]
[312820225,1706296258314,-959.29720074,0.00041401,2]
[312820226,1706296258323,-384.07691531,0.00041401,15]
[312820227,1706296258333,-76126.12358131,0.00041401,4]
[312820228,1706296258342,-1206.2073378,0.00041401,4]
[312820229,1706296258352,-2966.96621799,0.00041401,4]
[312820230,1706296258364,-5000.0,0.00041401,120]
[312820231,1706296258373,-150.0,0.00041464,30]